{"text_format":"3","workbook":"xlsx","n_sheets":3,"sheets":["Müügivihje andmed","Müügiprognoos ","Kaalutud kuupõhine prognoos"],"not_rendered":{"charts":1,"defined_names":10},"read":"whole","date_system":"1900"}

{"sheet":"Müügivihje andmed","index":0,"n_rows":9,"n_cols":10,"rows_kept":9}
[null,"Ettevõtte nimi"]
[null,"Üksikasjalik müügivihjete jälgimislogi"]
[null,{"$f":"TODAY()","v":"2022-04-06"}]
[{"$nulls":8},{"$f":"Ettevõtte_nimi","v":"Ettevõtte nimi"},"KONFIDENTSIAALNE"]
[null,"Müügivihje nimi","Müügivihje kontakt","Müügivihje \nallikas","Müügivihje \npiirkond","Müügivihje \nliik","Võimaluse väärtus","Müügi \ntõenäosus","Prognoositav \nlõpuleviimine","Kaalutud \nprognoos"]
[null,"A. Datum Corporation",{"$nulls":3},"Strateegiline",{"v":300000,"d":"300,000.00 €"},{"v":0.9,"d":"90%"},"Jaanuar",{"$f":"IFERROR(IF(MüügivihjeAndmed[[#This Row],[Müügi \ntõenäosus]]<>\"\",MüügivihjeAndmed[[#This Row],[Müügi \ntõenäosus]]*MüügivihjeAndmed[[#This Row],[Võimaluse väärtus]],\"\"),\"\")","v":{"v":270000,"d":"270,000.00 €"}}]
[null,"Adventure Works",{"$nulls":3},"Strateegiline",{"v":200000,"d":"200,000.00 €"},{"v":0.1,"d":"10%"},"Veebruar",{"$f":"IFERROR(IF(MüügivihjeAndmed[[#This Row],[Müügi \ntõenäosus]]<>\"\",MüügivihjeAndmed[[#This Row],[Müügi \ntõenäosus]]*MüügivihjeAndmed[[#This Row],[Võimaluse väärtus]],\"\"),\"\")","v":{"v":20000,"d":"20,000.00 €"}}]
[null,"Alpine Ski House",{"$nulls":3},"Taktiline",{"v":100000,"d":"100,000.00 €"},{"v":0.2,"d":"20%"},"Märts",{"$f":"IFERROR(IF(MüügivihjeAndmed[[#This Row],[Müügi \ntõenäosus]]<>\"\",MüügivihjeAndmed[[#This Row],[Müügi \ntõenäosus]]*MüügivihjeAndmed[[#This Row],[Võimaluse väärtus]],\"\"),\"\")","v":{"v":20000,"d":"20,000.00 €"}}]
[null,"Kokku",{"$nulls":4},{"$f":"SUBTOTAL(109,MüügivihjeAndmed[Võimaluse väärtus])","v":{"v":600000,"d":"600,000.00 €"}},null,null,{"$f":"SUBTOTAL(109,MüügivihjeAndmed[Kaalutud \nprognoos])","v":{"v":310000,"d":"310,000.00 €"}}]

{"sheet":"Müügiprognoos ","index":1,"n_rows":21,"n_cols":14,"rows_kept":21,"merged":[[3,12,3,13]]}
[null,{"$f":"Ettevõtte_nimi","v":"Ettevõtte nimi"}]
[null,"Müügiprognoos"]
[null,{"$f":"JälgimislogiKuupäev","v":"2022-04-06"}]
[{"$nulls":11},{"$f":"Ettevõtte_nimi","v":"Ettevõtte nimi"},"KONFIDENTSIAALNE"]
[null,"Müügivihje nimi","Jaanuari \nprognoos","Veebruari \nprognoos","Märtsi \nprognoos","Aprilli \nprognoos","Mai \nprognoos","Juuni \nprognoos","Juuli prognoos","Augusti \nprognoos","Septembri \nprognoos","Oktoobri \nprognoos","Novembri \nprognoos","Detsembri \nprognoos"]
[null,{"$f":"IFERROR(IF(AND(MüügivihjeAndmed[[#This Row],[Müügivihje nimi]] <> \"\", ROW(Müügiprognoos[Müügivihje nimi])<>ViimaneKirje),MüügivihjeAndmed[Müügivihje nimi], \"\"),\"\")","v":"A. Datum Corporation"},{"$f":"IFERROR(IF(MüügivihjeAndmed[[#This Row],[Prognoositav \nlõpuleviimine]] <>\"\",IF(MüügivihjeAndmed[[#This Row],[Prognoositav \nlõpuleviimine]]= \"Jaanuar\",MüügivihjeAndmed[Kaalutud \nprognoos],0),\"\"),\"\")","v":{"v":270000,"d":"270,000 €"}},{"$f":"IFERROR(IF(MüügivihjeAndmed[[#This Row],[Prognoositav \nlõpuleviimine]] <>\"\",IF(MüügivihjeAndmed[[#This Row],[Prognoositav \nlõpuleviimine]] = \"Veebruar\",MüügivihjeAndmed[Kaalutud \nprognoos],0),\"\"),\"\")","v":{"v":0,"d":"0 €"}},{"$f":"IFERROR(IF(MüügivihjeAndmed[[#This Row],[Prognoositav \nlõpuleviimine]] <>\"\",IF(MüügivihjeAndmed[[#This Row],[Prognoositav \nlõpuleviimine]] = \"Märts\",MüügivihjeAndmed[Kaalutud \nprognoos],0),\"\"),\"\")","v":{"v":0,"d":"0 €"}},{"$f":"IFERROR(IF(MüügivihjeAndmed[[#This Row],[Prognoositav \nlõpuleviimine]] <>\"\",IF(MüügivihjeAndmed[[#This Row],[Prognoositav \nlõpuleviimine]] = \"Aprilli\",MüügivihjeAndmed[Kaalutud \nprognoos],0),\"\"),\"\")","v":{"v":0,"d":"0 €"}},{"$f":"IFERROR(IF(MüügivihjeAndmed[[#This Row],[Prognoositav \nlõpuleviimine]] <>\"\",IF(MüügivihjeAndmed[[#This Row],[Prognoositav \nlõpuleviimine]] = \"Mai\",MüügivihjeAndmed[Kaalutud \nprognoos],0),\"\"),\"\")","v":{"v":0,"d":"0 €"}},{"$f":"IFERROR(IF(MüügivihjeAndmed[[#This Row],[Prognoositav \nlõpuleviimine]] <>\"\",IF(MüügivihjeAndmed[[#This Row],[Prognoositav \nlõpuleviimine]] = \"Juuni\",MüügivihjeAndmed[Kaalutud \nprognoos],0),\"\"),\"\")","v":{"v":0,"d":"0 €"}},{"$f":"IFERROR(IF(MüügivihjeAndmed[[#This Row],[Prognoositav \nlõpuleviimine]] <>\"\",IF(MüügivihjeAndmed[[#This Row],[Prognoositav \nlõpuleviimine]] = \"July\",MüügivihjeAndmed[Kaalutud \nprognoos],0),\"\"),\"\")","v":{"v":0,"d":"0 €"}},{"$f":"IFERROR(IF(MüügivihjeAndmed[[#This Row],[Prognoositav \nlõpuleviimine]] <>\"\",IF(MüügivihjeAndmed[[#This Row],[Prognoositav \nlõpuleviimine]] = \"Augusti\",MüügivihjeAndmed[Kaalutud \nprognoos],0),\"\"),\"\")","v":{"v":0,"d":"0 €"}},{"$f":"IFERROR(IF(MüügivihjeAndmed[[#This Row],[Prognoositav \nlõpuleviimine]] <>\"\",IF(MüügivihjeAndmed[[#This Row],[Prognoositav \nlõpuleviimine]] = \"Septembri\",MüügivihjeAndmed[Kaalutud \nprognoos],0),\"\"),\"\")","v":{"v":0,"d":"0 €"}},{"$f":"IFERROR(IF(MüügivihjeAndmed[[#This Row],[Prognoositav \nlõpuleviimine]] <>\"\",IF(MüügivihjeAndmed[[#This Row],[Prognoositav \nlõpuleviimine]] = \"Oktoobri\",MüügivihjeAndmed[Kaalutud \nprognoos],0),\"\"),\"\")","v":{"v":0,"d":"0 €"}},{"$f":"IFERROR(IF(MüügivihjeAndmed[[#This Row],[Prognoositav \nlõpuleviimine]] <>\"\",IF(MüügivihjeAndmed[[#This Row],[Prognoositav \nlõpuleviimine]] = \"Novembri\",MüügivihjeAndmed[Kaalutud \nprognoos],0),\"\"),\"\")","v":{"v":0,"d":"0 €"}},{"$f":"IFERROR(IF(MüügivihjeAndmed[[#This Row],[Prognoositav \nlõpuleviimine]] <>\"\",IF(MüügivihjeAndmed[[#This Row],[Prognoositav \nlõpuleviimine]] = \"Detsembri\",MüügivihjeAndmed[Kaalutud \nprognoos],0),\"\"),\"\")","v":{"v":0,"d":"0 €"}}]
[null,{"$f":"IFERROR(IF(AND(MüügivihjeAndmed[[#This Row],[Müügivihje nimi]] <> \"\", ROW(Müügiprognoos[Müügivihje nimi])<>ViimaneKirje),MüügivihjeAndmed[Müügivihje nimi], \"\"),\"\")","v":"Adventure Works"},{"$f":"IFERROR(IF(MüügivihjeAndmed[[#This Row],[Prognoositav \nlõpuleviimine]] <>\"\",IF(MüügivihjeAndmed[[#This Row],[Prognoositav \nlõpuleviimine]]= \"Jaanuar\",MüügivihjeAndmed[Kaalutud \nprognoos],0),\"\"),\"\")","v":{"v":0,"d":"0 €"}},{"$f":"IFERROR(IF(MüügivihjeAndmed[[#This Row],[Prognoositav \nlõpuleviimine]] <>\"\",IF(MüügivihjeAndmed[[#This Row],[Prognoositav \nlõpuleviimine]] = \"Veebruar\",MüügivihjeAndmed[Kaalutud \nprognoos],0),\"\"),\"\")","v":{"v":20000,"d":"20,000 €"}},{"$f":"IFERROR(IF(MüügivihjeAndmed[[#This Row],[Prognoositav \nlõpuleviimine]] <>\"\",IF(MüügivihjeAndmed[[#This Row],[Prognoositav \nlõpuleviimine]] = \"Märts\",MüügivihjeAndmed[Kaalutud \nprognoos],0),\"\"),\"\")","v":{"v":0,"d":"0 €"}},{"$f":"IFERROR(IF(MüügivihjeAndmed[[#This Row],[Prognoositav \nlõpuleviimine]] <>\"\",IF(MüügivihjeAndmed[[#This Row],[Prognoositav \nlõpuleviimine]] = \"Aprilli\",MüügivihjeAndmed[Kaalutud \nprognoos],0),\"\"),\"\")","v":{"v":0,"d":"0 €"}},{"$f":"IFERROR(IF(MüügivihjeAndmed[[#This Row],[Prognoositav \nlõpuleviimine]] <>\"\",IF(MüügivihjeAndmed[[#This Row],[Prognoositav \nlõpuleviimine]] = \"Mai\",MüügivihjeAndmed[Kaalutud \nprognoos],0),\"\"),\"\")","v":{"v":0,"d":"0 €"}},{"$f":"IFERROR(IF(MüügivihjeAndmed[[#This Row],[Prognoositav \nlõpuleviimine]] <>\"\",IF(MüügivihjeAndmed[[#This Row],[Prognoositav \nlõpuleviimine]] = \"Juuni\",MüügivihjeAndmed[Kaalutud \nprognoos],0),\"\"),\"\")","v":{"v":0,"d":"0 €"}},{"$f":"IFERROR(IF(MüügivihjeAndmed[[#This Row],[Prognoositav \nlõpuleviimine]] <>\"\",IF(MüügivihjeAndmed[[#This Row],[Prognoositav \nlõpuleviimine]] = \"July\",MüügivihjeAndmed[Kaalutud \nprognoos],0),\"\"),\"\")","v":{"v":0,"d":"0 €"}},{"$f":"IFERROR(IF(MüügivihjeAndmed[[#This Row],[Prognoositav \nlõpuleviimine]] <>\"\",IF(MüügivihjeAndmed[[#This Row],[Prognoositav \nlõpuleviimine]] = \"Augusti\",MüügivihjeAndmed[Kaalutud \nprognoos],0),\"\"),\"\")","v":{"v":0,"d":"0 €"}},{"$f":"IFERROR(IF(MüügivihjeAndmed[[#This Row],[Prognoositav \nlõpuleviimine]] <>\"\",IF(MüügivihjeAndmed[[#This Row],[Prognoositav \nlõpuleviimine]] = \"Septembri\",MüügivihjeAndmed[Kaalutud \nprognoos],0),\"\"),\"\")","v":{"v":0,"d":"0 €"}},{"$f":"IFERROR(IF(MüügivihjeAndmed[[#This Row],[Prognoositav \nlõpuleviimine]] <>\"\",IF(MüügivihjeAndmed[[#This Row],[Prognoositav \nlõpuleviimine]] = \"Oktoobri\",MüügivihjeAndmed[Kaalutud \nprognoos],0),\"\"),\"\")","v":{"v":0,"d":"0 €"}},{"$f":"IFERROR(IF(MüügivihjeAndmed[[#This Row],[Prognoositav \nlõpuleviimine]] <>\"\",IF(MüügivihjeAndmed[[#This Row],[Prognoositav \nlõpuleviimine]] = \"Novembri\",MüügivihjeAndmed[Kaalutud \nprognoos],0),\"\"),\"\")","v":{"v":0,"d":"0 €"}},{"$f":"IFERROR(IF(MüügivihjeAndmed[[#This Row],[Prognoositav \nlõpuleviimine]] <>\"\",IF(MüügivihjeAndmed[[#This Row],[Prognoositav \nlõpuleviimine]] = \"Detsembri\",MüügivihjeAndmed[Kaalutud \nprognoos],0),\"\"),\"\")","v":{"v":0,"d":"0 €"}}]
[null,{"$f":"IFERROR(IF(AND(MüügivihjeAndmed[[#This Row],[Müügivihje nimi]] <> \"\", ROW(Müügiprognoos[Müügivihje nimi])<>ViimaneKirje),MüügivihjeAndmed[Müügivihje nimi], \"\"),\"\")","v":"Alpine Ski House"},{"$f":"IFERROR(IF(MüügivihjeAndmed[[#This Row],[Prognoositav \nlõpuleviimine]] <>\"\",IF(MüügivihjeAndmed[[#This Row],[Prognoositav \nlõpuleviimine]]= \"Jaanuar\",MüügivihjeAndmed[Kaalutud \nprognoos],0),\"\"),\"\")","v":{"v":0,"d":"0 €"}},{"$f":"IFERROR(IF(MüügivihjeAndmed[[#This Row],[Prognoositav \nlõpuleviimine]] <>\"\",IF(MüügivihjeAndmed[[#This Row],[Prognoositav \nlõpuleviimine]] = \"Veebruar\",MüügivihjeAndmed[Kaalutud \nprognoos],0),\"\"),\"\")","v":{"v":0,"d":"0 €"}},{"$f":"IFERROR(IF(MüügivihjeAndmed[[#This Row],[Prognoositav \nlõpuleviimine]] <>\"\",IF(MüügivihjeAndmed[[#This Row],[Prognoositav \nlõpuleviimine]] = \"Märts\",MüügivihjeAndmed[Kaalutud \nprognoos],0),\"\"),\"\")","v":{"v":20000,"d":"20,000 €"}},{"$f":"IFERROR(IF(MüügivihjeAndmed[[#This Row],[Prognoositav \nlõpuleviimine]] <>\"\",IF(MüügivihjeAndmed[[#This Row],[Prognoositav \nlõpuleviimine]] = \"Aprilli\",MüügivihjeAndmed[Kaalutud \nprognoos],0),\"\"),\"\")","v":{"v":0,"d":"0 €"}},{"$f":"IFERROR(IF(MüügivihjeAndmed[[#This Row],[Prognoositav \nlõpuleviimine]] <>\"\",IF(MüügivihjeAndmed[[#This Row],[Prognoositav \nlõpuleviimine]] = \"Mai\",MüügivihjeAndmed[Kaalutud \nprognoos],0),\"\"),\"\")","v":{"v":0,"d":"0 €"}},{"$f":"IFERROR(IF(MüügivihjeAndmed[[#This Row],[Prognoositav \nlõpuleviimine]] <>\"\",IF(MüügivihjeAndmed[[#This Row],[Prognoositav \nlõpuleviimine]] = \"Juuni\",MüügivihjeAndmed[Kaalutud \nprognoos],0),\"\"),\"\")","v":{"v":0,"d":"0 €"}},{"$f":"IFERROR(IF(MüügivihjeAndmed[[#This Row],[Prognoositav \nlõpuleviimine]] <>\"\",IF(MüügivihjeAndmed[[#This Row],[Prognoositav \nlõpuleviimine]] = \"July\",MüügivihjeAndmed[Kaalutud \nprognoos],0),\"\"),\"\")","v":{"v":0,"d":"0 €"}},{"$f":"IFERROR(IF(MüügivihjeAndmed[[#This Row],[Prognoositav \nlõpuleviimine]] <>\"\",IF(MüügivihjeAndmed[[#This Row],[Prognoositav \nlõpuleviimine]] = \"Augusti\",MüügivihjeAndmed[Kaalutud \nprognoos],0),\"\"),\"\")","v":{"v":0,"d":"0 €"}},{"$f":"IFERROR(IF(MüügivihjeAndmed[[#This Row],[Prognoositav \nlõpuleviimine]] <>\"\",IF(MüügivihjeAndmed[[#This Row],[Prognoositav \nlõpuleviimine]] = \"Septembri\",MüügivihjeAndmed[Kaalutud \nprognoos],0),\"\"),\"\")","v":{"v":0,"d":"0 €"}},{"$f":"IFERROR(IF(MüügivihjeAndmed[[#This Row],[Prognoositav \nlõpuleviimine]] <>\"\",IF(MüügivihjeAndmed[[#This Row],[Prognoositav \nlõpuleviimine]] = \"Oktoobri\",MüügivihjeAndmed[Kaalutud \nprognoos],0),\"\"),\"\")","v":{"v":0,"d":"0 €"}},{"$f":"IFERROR(IF(MüügivihjeAndmed[[#This Row],[Prognoositav \nlõpuleviimine]] <>\"\",IF(MüügivihjeAndmed[[#This Row],[Prognoositav \nlõpuleviimine]] = \"Novembri\",MüügivihjeAndmed[Kaalutud \nprognoos],0),\"\"),\"\")","v":{"v":0,"d":"0 €"}},{"$f":"IFERROR(IF(MüügivihjeAndmed[[#This Row],[Prognoositav \nlõpuleviimine]] <>\"\",IF(MüügivihjeAndmed[[#This Row],[Prognoositav \nlõpuleviimine]] = \"Detsembri\",MüügivihjeAndmed[Kaalutud \nprognoos],0),\"\"),\"\")","v":{"v":0,"d":"0 €"}}]
[null,{"$f":"IFERROR(IF(AND(MüügivihjeAndmed[[#This Row],[Müügivihje nimi]] <> \"\", ROW(Müügiprognoos[Müügivihje nimi])<>ViimaneKirje),MüügivihjeAndmed[Müügivihje nimi], \"\"),\"\")","v":""},{"$f":"IFERROR(IF(MüügivihjeAndmed[[#This Row],[Prognoositav \nlõpuleviimine]] <>\"\",IF(MüügivihjeAndmed[[#This Row],[Prognoositav \nlõpuleviimine]]= \"Jaanuar\",MüügivihjeAndmed[Kaalutud \nprognoos],0),\"\"),\"\")","v":""},{"$f":"IFERROR(IF(MüügivihjeAndmed[[#This Row],[Prognoositav \nlõpuleviimine]] <>\"\",IF(MüügivihjeAndmed[[#This Row],[Prognoositav \nlõpuleviimine]] = \"Veebruar\",MüügivihjeAndmed[Kaalutud \nprognoos],0),\"\"),\"\")","v":""},{"$f":"IFERROR(IF(MüügivihjeAndmed[[#This Row],[Prognoositav \nlõpuleviimine]] <>\"\",IF(MüügivihjeAndmed[[#This Row],[Prognoositav \nlõpuleviimine]] = \"Märts\",MüügivihjeAndmed[Kaalutud \nprognoos],0),\"\"),\"\")","v":""},{"$f":"IFERROR(IF(MüügivihjeAndmed[[#This Row],[Prognoositav \nlõpuleviimine]] <>\"\",IF(MüügivihjeAndmed[[#This Row],[Prognoositav \nlõpuleviimine]] = \"Aprilli\",MüügivihjeAndmed[Kaalutud \nprognoos],0),\"\"),\"\")","v":""},{"$f":"IFERROR(IF(MüügivihjeAndmed[[#This Row],[Prognoositav \nlõpuleviimine]] <>\"\",IF(MüügivihjeAndmed[[#This Row],[Prognoositav \nlõpuleviimine]] = \"Mai\",MüügivihjeAndmed[Kaalutud \nprognoos],0),\"\"),\"\")","v":""},{"$f":"IFERROR(IF(MüügivihjeAndmed[[#This Row],[Prognoositav \nlõpuleviimine]] <>\"\",IF(MüügivihjeAndmed[[#This Row],[Prognoositav \nlõpuleviimine]] = \"Juuni\",MüügivihjeAndmed[Kaalutud \nprognoos],0),\"\"),\"\")","v":""},{"$f":"IFERROR(IF(MüügivihjeAndmed[[#This Row],[Prognoositav \nlõpuleviimine]] <>\"\",IF(MüügivihjeAndmed[[#This Row],[Prognoositav \nlõpuleviimine]] = \"July\",MüügivihjeAndmed[Kaalutud \nprognoos],0),\"\"),\"\")","v":""},{"$f":"IFERROR(IF(MüügivihjeAndmed[[#This Row],[Prognoositav \nlõpuleviimine]] <>\"\",IF(MüügivihjeAndmed[[#This Row],[Prognoositav \nlõpuleviimine]] = \"Augusti\",MüügivihjeAndmed[Kaalutud \nprognoos],0),\"\"),\"\")","v":""},{"$f":"IFERROR(IF(MüügivihjeAndmed[[#This Row],[Prognoositav \nlõpuleviimine]] <>\"\",IF(MüügivihjeAndmed[[#This Row],[Prognoositav \nlõpuleviimine]] = \"Septembri\",MüügivihjeAndmed[Kaalutud \nprognoos],0),\"\"),\"\")","v":""},{"$f":"IFERROR(IF(MüügivihjeAndmed[[#This Row],[Prognoositav \nlõpuleviimine]] <>\"\",IF(MüügivihjeAndmed[[#This Row],[Prognoositav \nlõpuleviimine]] = \"Oktoobri\",MüügivihjeAndmed[Kaalutud \nprognoos],0),\"\"),\"\")","v":""},{"$f":"IFERROR(IF(MüügivihjeAndmed[[#This Row],[Prognoositav \nlõpuleviimine]] <>\"\",IF(MüügivihjeAndmed[[#This Row],[Prognoositav \nlõpuleviimine]] = \"Novembri\",MüügivihjeAndmed[Kaalutud \nprognoos],0),\"\"),\"\")","v":""},{"$f":"IFERROR(IF(MüügivihjeAndmed[[#This Row],[Prognoositav \nlõpuleviimine]] <>\"\",IF(MüügivihjeAndmed[[#This Row],[Prognoositav \nlõpuleviimine]] = \"Detsembri\",MüügivihjeAndmed[Kaalutud \nprognoos],0),\"\"),\"\")","v":""}]
[null,{"$f":"IFERROR(IF(AND(MüügivihjeAndmed[[#This Row],[Müügivihje nimi]] <> \"\", ROW(Müügiprognoos[Müügivihje nimi])<>ViimaneKirje),MüügivihjeAndmed[Müügivihje nimi], \"\"),\"\")","v":""},{"$f":"IFERROR(IF(MüügivihjeAndmed[[#This Row],[Prognoositav \nlõpuleviimine]] <>\"\",IF(MüügivihjeAndmed[[#This Row],[Prognoositav \nlõpuleviimine]]= \"Jaanuar\",MüügivihjeAndmed[Kaalutud \nprognoos],0),\"\"),\"\")","v":""},{"$f":"IFERROR(IF(MüügivihjeAndmed[[#This Row],[Prognoositav \nlõpuleviimine]] <>\"\",IF(MüügivihjeAndmed[[#This Row],[Prognoositav \nlõpuleviimine]] = \"Veebruar\",MüügivihjeAndmed[Kaalutud \nprognoos],0),\"\"),\"\")","v":""},{"$f":"IFERROR(IF(MüügivihjeAndmed[[#This Row],[Prognoositav \nlõpuleviimine]] <>\"\",IF(MüügivihjeAndmed[[#This Row],[Prognoositav \nlõpuleviimine]] = \"Märts\",MüügivihjeAndmed[Kaalutud \nprognoos],0),\"\"),\"\")","v":""},{"$f":"IFERROR(IF(MüügivihjeAndmed[[#This Row],[Prognoositav \nlõpuleviimine]] <>\"\",IF(MüügivihjeAndmed[[#This Row],[Prognoositav \nlõpuleviimine]] = \"Aprilli\",MüügivihjeAndmed[Kaalutud \nprognoos],0),\"\"),\"\")","v":""},{"$f":"IFERROR(IF(MüügivihjeAndmed[[#This Row],[Prognoositav \nlõpuleviimine]] <>\"\",IF(MüügivihjeAndmed[[#This Row],[Prognoositav \nlõpuleviimine]] = \"Mai\",MüügivihjeAndmed[Kaalutud \nprognoos],0),\"\"),\"\")","v":""},{"$f":"IFERROR(IF(MüügivihjeAndmed[[#This Row],[Prognoositav \nlõpuleviimine]] <>\"\",IF(MüügivihjeAndmed[[#This Row],[Prognoositav \nlõpuleviimine]] = \"Juuni\",MüügivihjeAndmed[Kaalutud \nprognoos],0),\"\"),\"\")","v":""},{"$f":"IFERROR(IF(MüügivihjeAndmed[[#This Row],[Prognoositav \nlõpuleviimine]] <>\"\",IF(MüügivihjeAndmed[[#This Row],[Prognoositav \nlõpuleviimine]] = \"July\",MüügivihjeAndmed[Kaalutud \nprognoos],0),\"\"),\"\")","v":""},{"$f":"IFERROR(IF(MüügivihjeAndmed[[#This Row],[Prognoositav \nlõpuleviimine]] <>\"\",IF(MüügivihjeAndmed[[#This Row],[Prognoositav \nlõpuleviimine]] = \"Augusti\",MüügivihjeAndmed[Kaalutud \nprognoos],0),\"\"),\"\")","v":""},{"$f":"IFERROR(IF(MüügivihjeAndmed[[#This Row],[Prognoositav \nlõpuleviimine]] <>\"\",IF(MüügivihjeAndmed[[#This Row],[Prognoositav \nlõpuleviimine]] = \"Septembri\",MüügivihjeAndmed[Kaalutud \nprognoos],0),\"\"),\"\")","v":""},{"$f":"IFERROR(IF(MüügivihjeAndmed[[#This Row],[Prognoositav \nlõpuleviimine]] <>\"\",IF(MüügivihjeAndmed[[#This Row],[Prognoositav \nlõpuleviimine]] = \"Oktoobri\",MüügivihjeAndmed[Kaalutud \nprognoos],0),\"\"),\"\")","v":""},{"$f":"IFERROR(IF(MüügivihjeAndmed[[#This Row],[Prognoositav \nlõpuleviimine]] <>\"\",IF(MüügivihjeAndmed[[#This Row],[Prognoositav \nlõpuleviimine]] = \"Novembri\",MüügivihjeAndmed[Kaalutud \nprognoos],0),\"\"),\"\")","v":""},{"$f":"IFERROR(IF(MüügivihjeAndmed[[#This Row],[Prognoositav \nlõpuleviimine]] <>\"\",IF(MüügivihjeAndmed[[#This Row],[Prognoositav \nlõpuleviimine]] = \"Detsembri\",MüügivihjeAndmed[Kaalutud \nprognoos],0),\"\"),\"\")","v":""}]
[null,{"$f":"IFERROR(IF(AND(MüügivihjeAndmed[[#This Row],[Müügivihje nimi]] <> \"\", ROW(Müügiprognoos[Müügivihje nimi])<>ViimaneKirje),MüügivihjeAndmed[Müügivihje nimi], \"\"),\"\")","v":""},{"$f":"IFERROR(IF(MüügivihjeAndmed[[#This Row],[Prognoositav \nlõpuleviimine]] <>\"\",IF(MüügivihjeAndmed[[#This Row],[Prognoositav \nlõpuleviimine]]= \"Jaanuar\",MüügivihjeAndmed[Kaalutud \nprognoos],0),\"\"),\"\")","v":""},{"$f":"IFERROR(IF(MüügivihjeAndmed[[#This Row],[Prognoositav \nlõpuleviimine]] <>\"\",IF(MüügivihjeAndmed[[#This Row],[Prognoositav \nlõpuleviimine]] = \"Veebruar\",MüügivihjeAndmed[Kaalutud \nprognoos],0),\"\"),\"\")","v":""},{"$f":"IFERROR(IF(MüügivihjeAndmed[[#This Row],[Prognoositav \nlõpuleviimine]] <>\"\",IF(MüügivihjeAndmed[[#This Row],[Prognoositav \nlõpuleviimine]] = \"Märts\",MüügivihjeAndmed[Kaalutud \nprognoos],0),\"\"),\"\")","v":""},{"$f":"IFERROR(IF(MüügivihjeAndmed[[#This Row],[Prognoositav \nlõpuleviimine]] <>\"\",IF(MüügivihjeAndmed[[#This Row],[Prognoositav \nlõpuleviimine]] = \"Aprilli\",MüügivihjeAndmed[Kaalutud \nprognoos],0),\"\"),\"\")","v":""},{"$f":"IFERROR(IF(MüügivihjeAndmed[[#This Row],[Prognoositav \nlõpuleviimine]] <>\"\",IF(MüügivihjeAndmed[[#This Row],[Prognoositav \nlõpuleviimine]] = \"Mai\",MüügivihjeAndmed[Kaalutud \nprognoos],0),\"\"),\"\")","v":""},{"$f":"IFERROR(IF(MüügivihjeAndmed[[#This Row],[Prognoositav \nlõpuleviimine]] <>\"\",IF(MüügivihjeAndmed[[#This Row],[Prognoositav \nlõpuleviimine]] = \"Juuni\",MüügivihjeAndmed[Kaalutud \nprognoos],0),\"\"),\"\")","v":""},{"$f":"IFERROR(IF(MüügivihjeAndmed[[#This Row],[Prognoositav \nlõpuleviimine]] <>\"\",IF(MüügivihjeAndmed[[#This Row],[Prognoositav \nlõpuleviimine]] = \"July\",MüügivihjeAndmed[Kaalutud \nprognoos],0),\"\"),\"\")","v":""},{"$f":"IFERROR(IF(MüügivihjeAndmed[[#This Row],[Prognoositav \nlõpuleviimine]] <>\"\",IF(MüügivihjeAndmed[[#This Row],[Prognoositav \nlõpuleviimine]] = \"Augusti\",MüügivihjeAndmed[Kaalutud \nprognoos],0),\"\"),\"\")","v":""},{"$f":"IFERROR(IF(MüügivihjeAndmed[[#This Row],[Prognoositav \nlõpuleviimine]] <>\"\",IF(MüügivihjeAndmed[[#This Row],[Prognoositav \nlõpuleviimine]] = \"Septembri\",MüügivihjeAndmed[Kaalutud \nprognoos],0),\"\"),\"\")","v":""},{"$f":"IFERROR(IF(MüügivihjeAndmed[[#This Row],[Prognoositav \nlõpuleviimine]] <>\"\",IF(MüügivihjeAndmed[[#This Row],[Prognoositav \nlõpuleviimine]] = \"Oktoobri\",MüügivihjeAndmed[Kaalutud \nprognoos],0),\"\"),\"\")","v":""},{"$f":"IFERROR(IF(MüügivihjeAndmed[[#This Row],[Prognoositav \nlõpuleviimine]] <>\"\",IF(MüügivihjeAndmed[[#This Row],[Prognoositav \nlõpuleviimine]] = \"Novembri\",MüügivihjeAndmed[Kaalutud \nprognoos],0),\"\"),\"\")","v":""},{"$f":"IFERROR(IF(MüügivihjeAndmed[[#This Row],[Prognoositav \nlõpuleviimine]] <>\"\",IF(MüügivihjeAndmed[[#This Row],[Prognoositav \nlõpuleviimine]] = \"Detsembri\",MüügivihjeAndmed[Kaalutud \nprognoos],0),\"\"),\"\")","v":""}]
[null,{"$f":"IFERROR(IF(AND(MüügivihjeAndmed[[#This Row],[Müügivihje nimi]] <> \"\", ROW(Müügiprognoos[Müügivihje nimi])<>ViimaneKirje),MüügivihjeAndmed[Müügivihje nimi], \"\"),\"\")","v":""},{"$f":"IFERROR(IF(MüügivihjeAndmed[[#This Row],[Prognoositav \nlõpuleviimine]] <>\"\",IF(MüügivihjeAndmed[[#This Row],[Prognoositav \nlõpuleviimine]]= \"Jaanuar\",MüügivihjeAndmed[Kaalutud \nprognoos],0),\"\"),\"\")","v":""},{"$f":"IFERROR(IF(MüügivihjeAndmed[[#This Row],[Prognoositav \nlõpuleviimine]] <>\"\",IF(MüügivihjeAndmed[[#This Row],[Prognoositav \nlõpuleviimine]] = \"Veebruar\",MüügivihjeAndmed[Kaalutud \nprognoos],0),\"\"),\"\")","v":""},{"$f":"IFERROR(IF(MüügivihjeAndmed[[#This Row],[Prognoositav \nlõpuleviimine]] <>\"\",IF(MüügivihjeAndmed[[#This Row],[Prognoositav \nlõpuleviimine]] = \"Märts\",MüügivihjeAndmed[Kaalutud \nprognoos],0),\"\"),\"\")","v":""},{"$f":"IFERROR(IF(MüügivihjeAndmed[[#This Row],[Prognoositav \nlõpuleviimine]] <>\"\",IF(MüügivihjeAndmed[[#This Row],[Prognoositav \nlõpuleviimine]] = \"Aprilli\",MüügivihjeAndmed[Kaalutud \nprognoos],0),\"\"),\"\")","v":""},{"$f":"IFERROR(IF(MüügivihjeAndmed[[#This Row],[Prognoositav \nlõpuleviimine]] <>\"\",IF(MüügivihjeAndmed[[#This Row],[Prognoositav \nlõpuleviimine]] = \"Mai\",MüügivihjeAndmed[Kaalutud \nprognoos],0),\"\"),\"\")","v":""},{"$f":"IFERROR(IF(MüügivihjeAndmed[[#This Row],[Prognoositav \nlõpuleviimine]] <>\"\",IF(MüügivihjeAndmed[[#This Row],[Prognoositav \nlõpuleviimine]] = \"Juuni\",MüügivihjeAndmed[Kaalutud \nprognoos],0),\"\"),\"\")","v":""},{"$f":"IFERROR(IF(MüügivihjeAndmed[[#This Row],[Prognoositav \nlõpuleviimine]] <>\"\",IF(MüügivihjeAndmed[[#This Row],[Prognoositav \nlõpuleviimine]] = \"July\",MüügivihjeAndmed[Kaalutud \nprognoos],0),\"\"),\"\")","v":""},{"$f":"IFERROR(IF(MüügivihjeAndmed[[#This Row],[Prognoositav \nlõpuleviimine]] <>\"\",IF(MüügivihjeAndmed[[#This Row],[Prognoositav \nlõpuleviimine]] = \"Augusti\",MüügivihjeAndmed[Kaalutud \nprognoos],0),\"\"),\"\")","v":""},{"$f":"IFERROR(IF(MüügivihjeAndmed[[#This Row],[Prognoositav \nlõpuleviimine]] <>\"\",IF(MüügivihjeAndmed[[#This Row],[Prognoositav \nlõpuleviimine]] = \"Septembri\",MüügivihjeAndmed[Kaalutud \nprognoos],0),\"\"),\"\")","v":""},{"$f":"IFERROR(IF(MüügivihjeAndmed[[#This Row],[Prognoositav \nlõpuleviimine]] <>\"\",IF(MüügivihjeAndmed[[#This Row],[Prognoositav \nlõpuleviimine]] = \"Oktoobri\",MüügivihjeAndmed[Kaalutud \nprognoos],0),\"\"),\"\")","v":""},{"$f":"IFERROR(IF(MüügivihjeAndmed[[#This Row],[Prognoositav \nlõpuleviimine]] <>\"\",IF(MüügivihjeAndmed[[#This Row],[Prognoositav \nlõpuleviimine]] = \"Novembri\",MüügivihjeAndmed[Kaalutud \nprognoos],0),\"\"),\"\")","v":""},{"$f":"IFERROR(IF(MüügivihjeAndmed[[#This Row],[Prognoositav \nlõpuleviimine]] <>\"\",IF(MüügivihjeAndmed[[#This Row],[Prognoositav \nlõpuleviimine]] = \"Detsembri\",MüügivihjeAndmed[Kaalutud \nprognoos],0),\"\"),\"\")","v":""}]
[null,{"$f":"IFERROR(IF(AND(MüügivihjeAndmed[[#This Row],[Müügivihje nimi]] <> \"\", ROW(Müügiprognoos[Müügivihje nimi])<>ViimaneKirje),MüügivihjeAndmed[Müügivihje nimi], \"\"),\"\")","v":""},{"$f":"IFERROR(IF(MüügivihjeAndmed[[#This Row],[Prognoositav \nlõpuleviimine]] <>\"\",IF(MüügivihjeAndmed[[#This Row],[Prognoositav \nlõpuleviimine]]= \"Jaanuar\",MüügivihjeAndmed[Kaalutud \nprognoos],0),\"\"),\"\")","v":""},{"$f":"IFERROR(IF(MüügivihjeAndmed[[#This Row],[Prognoositav \nlõpuleviimine]] <>\"\",IF(MüügivihjeAndmed[[#This Row],[Prognoositav \nlõpuleviimine]] = \"Veebruar\",MüügivihjeAndmed[Kaalutud \nprognoos],0),\"\"),\"\")","v":""},{"$f":"IFERROR(IF(MüügivihjeAndmed[[#This Row],[Prognoositav \nlõpuleviimine]] <>\"\",IF(MüügivihjeAndmed[[#This Row],[Prognoositav \nlõpuleviimine]] = \"Märts\",MüügivihjeAndmed[Kaalutud \nprognoos],0),\"\"),\"\")","v":""},{"$f":"IFERROR(IF(MüügivihjeAndmed[[#This Row],[Prognoositav \nlõpuleviimine]] <>\"\",IF(MüügivihjeAndmed[[#This Row],[Prognoositav \nlõpuleviimine]] = \"Aprilli\",MüügivihjeAndmed[Kaalutud \nprognoos],0),\"\"),\"\")","v":""},{"$f":"IFERROR(IF(MüügivihjeAndmed[[#This Row],[Prognoositav \nlõpuleviimine]] <>\"\",IF(MüügivihjeAndmed[[#This Row],[Prognoositav \nlõpuleviimine]] = \"Mai\",MüügivihjeAndmed[Kaalutud \nprognoos],0),\"\"),\"\")","v":""},{"$f":"IFERROR(IF(MüügivihjeAndmed[[#This Row],[Prognoositav \nlõpuleviimine]] <>\"\",IF(MüügivihjeAndmed[[#This Row],[Prognoositav \nlõpuleviimine]] = \"Juuni\",MüügivihjeAndmed[Kaalutud \nprognoos],0),\"\"),\"\")","v":""},{"$f":"IFERROR(IF(MüügivihjeAndmed[[#This Row],[Prognoositav \nlõpuleviimine]] <>\"\",IF(MüügivihjeAndmed[[#This Row],[Prognoositav \nlõpuleviimine]] = \"July\",MüügivihjeAndmed[Kaalutud \nprognoos],0),\"\"),\"\")","v":""},{"$f":"IFERROR(IF(MüügivihjeAndmed[[#This Row],[Prognoositav \nlõpuleviimine]] <>\"\",IF(MüügivihjeAndmed[[#This Row],[Prognoositav \nlõpuleviimine]] = \"Augusti\",MüügivihjeAndmed[Kaalutud \nprognoos],0),\"\"),\"\")","v":""},{"$f":"IFERROR(IF(MüügivihjeAndmed[[#This Row],[Prognoositav \nlõpuleviimine]] <>\"\",IF(MüügivihjeAndmed[[#This Row],[Prognoositav \nlõpuleviimine]] = \"Septembri\",MüügivihjeAndmed[Kaalutud \nprognoos],0),\"\"),\"\")","v":""},{"$f":"IFERROR(IF(MüügivihjeAndmed[[#This Row],[Prognoositav \nlõpuleviimine]] <>\"\",IF(MüügivihjeAndmed[[#This Row],[Prognoositav \nlõpuleviimine]] = \"Oktoobri\",MüügivihjeAndmed[Kaalutud \nprognoos],0),\"\"),\"\")","v":""},{"$f":"IFERROR(IF(MüügivihjeAndmed[[#This Row],[Prognoositav \nlõpuleviimine]] <>\"\",IF(MüügivihjeAndmed[[#This Row],[Prognoositav \nlõpuleviimine]] = \"Novembri\",MüügivihjeAndmed[Kaalutud \nprognoos],0),\"\"),\"\")","v":""},{"$f":"IFERROR(IF(MüügivihjeAndmed[[#This Row],[Prognoositav \nlõpuleviimine]] <>\"\",IF(MüügivihjeAndmed[[#This Row],[Prognoositav \nlõpuleviimine]] = \"Detsembri\",MüügivihjeAndmed[Kaalutud \nprognoos],0),\"\"),\"\")","v":""}]
[null,{"$f":"IFERROR(IF(AND(MüügivihjeAndmed[[#This Row],[Müügivihje nimi]] <> \"\", ROW(Müügiprognoos[Müügivihje nimi])<>ViimaneKirje),MüügivihjeAndmed[Müügivihje nimi], \"\"),\"\")","v":""},{"$f":"IFERROR(IF(MüügivihjeAndmed[[#This Row],[Prognoositav \nlõpuleviimine]] <>\"\",IF(MüügivihjeAndmed[[#This Row],[Prognoositav \nlõpuleviimine]]= \"Jaanuar\",MüügivihjeAndmed[Kaalutud \nprognoos],0),\"\"),\"\")","v":""},{"$f":"IFERROR(IF(MüügivihjeAndmed[[#This Row],[Prognoositav \nlõpuleviimine]] <>\"\",IF(MüügivihjeAndmed[[#This Row],[Prognoositav \nlõpuleviimine]] = \"Veebruar\",MüügivihjeAndmed[Kaalutud \nprognoos],0),\"\"),\"\")","v":""},{"$f":"IFERROR(IF(MüügivihjeAndmed[[#This Row],[Prognoositav \nlõpuleviimine]] <>\"\",IF(MüügivihjeAndmed[[#This Row],[Prognoositav \nlõpuleviimine]] = \"Märts\",MüügivihjeAndmed[Kaalutud \nprognoos],0),\"\"),\"\")","v":""},{"$f":"IFERROR(IF(MüügivihjeAndmed[[#This Row],[Prognoositav \nlõpuleviimine]] <>\"\",IF(MüügivihjeAndmed[[#This Row],[Prognoositav \nlõpuleviimine]] = \"Aprilli\",MüügivihjeAndmed[Kaalutud \nprognoos],0),\"\"),\"\")","v":""},{"$f":"IFERROR(IF(MüügivihjeAndmed[[#This Row],[Prognoositav \nlõpuleviimine]] <>\"\",IF(MüügivihjeAndmed[[#This Row],[Prognoositav \nlõpuleviimine]] = \"Mai\",MüügivihjeAndmed[Kaalutud \nprognoos],0),\"\"),\"\")","v":""},{"$f":"IFERROR(IF(MüügivihjeAndmed[[#This Row],[Prognoositav \nlõpuleviimine]] <>\"\",IF(MüügivihjeAndmed[[#This Row],[Prognoositav \nlõpuleviimine]] = \"Juuni\",MüügivihjeAndmed[Kaalutud \nprognoos],0),\"\"),\"\")","v":""},{"$f":"IFERROR(IF(MüügivihjeAndmed[[#This Row],[Prognoositav \nlõpuleviimine]] <>\"\",IF(MüügivihjeAndmed[[#This Row],[Prognoositav \nlõpuleviimine]] = \"July\",MüügivihjeAndmed[Kaalutud \nprognoos],0),\"\"),\"\")","v":""},{"$f":"IFERROR(IF(MüügivihjeAndmed[[#This Row],[Prognoositav \nlõpuleviimine]] <>\"\",IF(MüügivihjeAndmed[[#This Row],[Prognoositav \nlõpuleviimine]] = \"Augusti\",MüügivihjeAndmed[Kaalutud \nprognoos],0),\"\"),\"\")","v":""},{"$f":"IFERROR(IF(MüügivihjeAndmed[[#This Row],[Prognoositav \nlõpuleviimine]] <>\"\",IF(MüügivihjeAndmed[[#This Row],[Prognoositav \nlõpuleviimine]] = \"Septembri\",MüügivihjeAndmed[Kaalutud \nprognoos],0),\"\"),\"\")","v":""},{"$f":"IFERROR(IF(MüügivihjeAndmed[[#This Row],[Prognoositav \nlõpuleviimine]] <>\"\",IF(MüügivihjeAndmed[[#This Row],[Prognoositav \nlõpuleviimine]] = \"Oktoobri\",MüügivihjeAndmed[Kaalutud \nprognoos],0),\"\"),\"\")","v":""},{"$f":"IFERROR(IF(MüügivihjeAndmed[[#This Row],[Prognoositav \nlõpuleviimine]] <>\"\",IF(MüügivihjeAndmed[[#This Row],[Prognoositav \nlõpuleviimine]] = \"Novembri\",MüügivihjeAndmed[Kaalutud \nprognoos],0),\"\"),\"\")","v":""},{"$f":"IFERROR(IF(MüügivihjeAndmed[[#This Row],[Prognoositav \nlõpuleviimine]] <>\"\",IF(MüügivihjeAndmed[[#This Row],[Prognoositav \nlõpuleviimine]] = \"Detsembri\",MüügivihjeAndmed[Kaalutud \nprognoos],0),\"\"),\"\")","v":""}]
[null,{"$f":"IFERROR(IF(AND(MüügivihjeAndmed[[#This Row],[Müügivihje nimi]] <> \"\", ROW(Müügiprognoos[Müügivihje nimi])<>ViimaneKirje),MüügivihjeAndmed[Müügivihje nimi], \"\"),\"\")","v":""},{"$f":"IFERROR(IF(MüügivihjeAndmed[[#This Row],[Prognoositav \nlõpuleviimine]] <>\"\",IF(MüügivihjeAndmed[[#This Row],[Prognoositav \nlõpuleviimine]]= \"Jaanuar\",MüügivihjeAndmed[Kaalutud \nprognoos],0),\"\"),\"\")","v":""},{"$f":"IFERROR(IF(MüügivihjeAndmed[[#This Row],[Prognoositav \nlõpuleviimine]] <>\"\",IF(MüügivihjeAndmed[[#This Row],[Prognoositav \nlõpuleviimine]] = \"Veebruar\",MüügivihjeAndmed[Kaalutud \nprognoos],0),\"\"),\"\")","v":""},{"$f":"IFERROR(IF(MüügivihjeAndmed[[#This Row],[Prognoositav \nlõpuleviimine]] <>\"\",IF(MüügivihjeAndmed[[#This Row],[Prognoositav \nlõpuleviimine]] = \"Märts\",MüügivihjeAndmed[Kaalutud \nprognoos],0),\"\"),\"\")","v":""},{"$f":"IFERROR(IF(MüügivihjeAndmed[[#This Row],[Prognoositav \nlõpuleviimine]] <>\"\",IF(MüügivihjeAndmed[[#This Row],[Prognoositav \nlõpuleviimine]] = \"Aprilli\",MüügivihjeAndmed[Kaalutud \nprognoos],0),\"\"),\"\")","v":""},{"$f":"IFERROR(IF(MüügivihjeAndmed[[#This Row],[Prognoositav \nlõpuleviimine]] <>\"\",IF(MüügivihjeAndmed[[#This Row],[Prognoositav \nlõpuleviimine]] = \"Mai\",MüügivihjeAndmed[Kaalutud \nprognoos],0),\"\"),\"\")","v":""},{"$f":"IFERROR(IF(MüügivihjeAndmed[[#This Row],[Prognoositav \nlõpuleviimine]] <>\"\",IF(MüügivihjeAndmed[[#This Row],[Prognoositav \nlõpuleviimine]] = \"Juuni\",MüügivihjeAndmed[Kaalutud \nprognoos],0),\"\"),\"\")","v":""},{"$f":"IFERROR(IF(MüügivihjeAndmed[[#This Row],[Prognoositav \nlõpuleviimine]] <>\"\",IF(MüügivihjeAndmed[[#This Row],[Prognoositav \nlõpuleviimine]] = \"July\",MüügivihjeAndmed[Kaalutud \nprognoos],0),\"\"),\"\")","v":""},{"$f":"IFERROR(IF(MüügivihjeAndmed[[#This Row],[Prognoositav \nlõpuleviimine]] <>\"\",IF(MüügivihjeAndmed[[#This Row],[Prognoositav \nlõpuleviimine]] = \"Augusti\",MüügivihjeAndmed[Kaalutud \nprognoos],0),\"\"),\"\")","v":""},{"$f":"IFERROR(IF(MüügivihjeAndmed[[#This Row],[Prognoositav \nlõpuleviimine]] <>\"\",IF(MüügivihjeAndmed[[#This Row],[Prognoositav \nlõpuleviimine]] = \"Septembri\",MüügivihjeAndmed[Kaalutud \nprognoos],0),\"\"),\"\")","v":""},{"$f":"IFERROR(IF(MüügivihjeAndmed[[#This Row],[Prognoositav \nlõpuleviimine]] <>\"\",IF(MüügivihjeAndmed[[#This Row],[Prognoositav \nlõpuleviimine]] = \"Oktoobri\",MüügivihjeAndmed[Kaalutud \nprognoos],0),\"\"),\"\")","v":""},{"$f":"IFERROR(IF(MüügivihjeAndmed[[#This Row],[Prognoositav \nlõpuleviimine]] <>\"\",IF(MüügivihjeAndmed[[#This Row],[Prognoositav \nlõpuleviimine]] = \"Novembri\",MüügivihjeAndmed[Kaalutud \nprognoos],0),\"\"),\"\")","v":""},{"$f":"IFERROR(IF(MüügivihjeAndmed[[#This Row],[Prognoositav \nlõpuleviimine]] <>\"\",IF(MüügivihjeAndmed[[#This Row],[Prognoositav \nlõpuleviimine]] = \"Detsembri\",MüügivihjeAndmed[Kaalutud \nprognoos],0),\"\"),\"\")","v":""}]
[null,{"$f":"IFERROR(IF(AND(MüügivihjeAndmed[[#This Row],[Müügivihje nimi]] <> \"\", ROW(Müügiprognoos[Müügivihje nimi])<>ViimaneKirje),MüügivihjeAndmed[Müügivihje nimi], \"\"),\"\")","v":""},{"$f":"IFERROR(IF(MüügivihjeAndmed[[#This Row],[Prognoositav \nlõpuleviimine]] <>\"\",IF(MüügivihjeAndmed[[#This Row],[Prognoositav \nlõpuleviimine]]= \"Jaanuar\",MüügivihjeAndmed[Kaalutud \nprognoos],0),\"\"),\"\")","v":""},{"$f":"IFERROR(IF(MüügivihjeAndmed[[#This Row],[Prognoositav \nlõpuleviimine]] <>\"\",IF(MüügivihjeAndmed[[#This Row],[Prognoositav \nlõpuleviimine]] = \"Veebruar\",MüügivihjeAndmed[Kaalutud \nprognoos],0),\"\"),\"\")","v":""},{"$f":"IFERROR(IF(MüügivihjeAndmed[[#This Row],[Prognoositav \nlõpuleviimine]] <>\"\",IF(MüügivihjeAndmed[[#This Row],[Prognoositav \nlõpuleviimine]] = \"Märts\",MüügivihjeAndmed[Kaalutud \nprognoos],0),\"\"),\"\")","v":""},{"$f":"IFERROR(IF(MüügivihjeAndmed[[#This Row],[Prognoositav \nlõpuleviimine]] <>\"\",IF(MüügivihjeAndmed[[#This Row],[Prognoositav \nlõpuleviimine]] = \"Aprilli\",MüügivihjeAndmed[Kaalutud \nprognoos],0),\"\"),\"\")","v":""},{"$f":"IFERROR(IF(MüügivihjeAndmed[[#This Row],[Prognoositav \nlõpuleviimine]] <>\"\",IF(MüügivihjeAndmed[[#This Row],[Prognoositav \nlõpuleviimine]] = \"Mai\",MüügivihjeAndmed[Kaalutud \nprognoos],0),\"\"),\"\")","v":""},{"$f":"IFERROR(IF(MüügivihjeAndmed[[#This Row],[Prognoositav \nlõpuleviimine]] <>\"\",IF(MüügivihjeAndmed[[#This Row],[Prognoositav \nlõpuleviimine]] = \"Juuni\",MüügivihjeAndmed[Kaalutud \nprognoos],0),\"\"),\"\")","v":""},{"$f":"IFERROR(IF(MüügivihjeAndmed[[#This Row],[Prognoositav \nlõpuleviimine]] <>\"\",IF(MüügivihjeAndmed[[#This Row],[Prognoositav \nlõpuleviimine]] = \"July\",MüügivihjeAndmed[Kaalutud \nprognoos],0),\"\"),\"\")","v":""},{"$f":"IFERROR(IF(MüügivihjeAndmed[[#This Row],[Prognoositav \nlõpuleviimine]] <>\"\",IF(MüügivihjeAndmed[[#This Row],[Prognoositav \nlõpuleviimine]] = \"Augusti\",MüügivihjeAndmed[Kaalutud \nprognoos],0),\"\"),\"\")","v":""},{"$f":"IFERROR(IF(MüügivihjeAndmed[[#This Row],[Prognoositav \nlõpuleviimine]] <>\"\",IF(MüügivihjeAndmed[[#This Row],[Prognoositav \nlõpuleviimine]] = \"Septembri\",MüügivihjeAndmed[Kaalutud \nprognoos],0),\"\"),\"\")","v":""},{"$f":"IFERROR(IF(MüügivihjeAndmed[[#This Row],[Prognoositav \nlõpuleviimine]] <>\"\",IF(MüügivihjeAndmed[[#This Row],[Prognoositav \nlõpuleviimine]] = \"Oktoobri\",MüügivihjeAndmed[Kaalutud \nprognoos],0),\"\"),\"\")","v":""},{"$f":"IFERROR(IF(MüügivihjeAndmed[[#This Row],[Prognoositav \nlõpuleviimine]] <>\"\",IF(MüügivihjeAndmed[[#This Row],[Prognoositav \nlõpuleviimine]] = \"Novembri\",MüügivihjeAndmed[Kaalutud \nprognoos],0),\"\"),\"\")","v":""},{"$f":"IFERROR(IF(MüügivihjeAndmed[[#This Row],[Prognoositav \nlõpuleviimine]] <>\"\",IF(MüügivihjeAndmed[[#This Row],[Prognoositav \nlõpuleviimine]] = \"Detsembri\",MüügivihjeAndmed[Kaalutud \nprognoos],0),\"\"),\"\")","v":""}]
[null,{"$f":"IFERROR(IF(AND(MüügivihjeAndmed[[#This Row],[Müügivihje nimi]] <> \"\", ROW(Müügiprognoos[Müügivihje nimi])<>ViimaneKirje),MüügivihjeAndmed[Müügivihje nimi], \"\"),\"\")","v":""},{"$f":"IFERROR(IF(MüügivihjeAndmed[[#This Row],[Prognoositav \nlõpuleviimine]] <>\"\",IF(MüügivihjeAndmed[[#This Row],[Prognoositav \nlõpuleviimine]]= \"Jaanuar\",MüügivihjeAndmed[Kaalutud \nprognoos],0),\"\"),\"\")","v":""},{"$f":"IFERROR(IF(MüügivihjeAndmed[[#This Row],[Prognoositav \nlõpuleviimine]] <>\"\",IF(MüügivihjeAndmed[[#This Row],[Prognoositav \nlõpuleviimine]] = \"Veebruar\",MüügivihjeAndmed[Kaalutud \nprognoos],0),\"\"),\"\")","v":""},{"$f":"IFERROR(IF(MüügivihjeAndmed[[#This Row],[Prognoositav \nlõpuleviimine]] <>\"\",IF(MüügivihjeAndmed[[#This Row],[Prognoositav \nlõpuleviimine]] = \"Märts\",MüügivihjeAndmed[Kaalutud \nprognoos],0),\"\"),\"\")","v":""},{"$f":"IFERROR(IF(MüügivihjeAndmed[[#This Row],[Prognoositav \nlõpuleviimine]] <>\"\",IF(MüügivihjeAndmed[[#This Row],[Prognoositav \nlõpuleviimine]] = \"Aprilli\",MüügivihjeAndmed[Kaalutud \nprognoos],0),\"\"),\"\")","v":""},{"$f":"IFERROR(IF(MüügivihjeAndmed[[#This Row],[Prognoositav \nlõpuleviimine]] <>\"\",IF(MüügivihjeAndmed[[#This Row],[Prognoositav \nlõpuleviimine]] = \"Mai\",MüügivihjeAndmed[Kaalutud \nprognoos],0),\"\"),\"\")","v":""},{"$f":"IFERROR(IF(MüügivihjeAndmed[[#This Row],[Prognoositav \nlõpuleviimine]] <>\"\",IF(MüügivihjeAndmed[[#This Row],[Prognoositav \nlõpuleviimine]] = \"Juuni\",MüügivihjeAndmed[Kaalutud \nprognoos],0),\"\"),\"\")","v":""},{"$f":"IFERROR(IF(MüügivihjeAndmed[[#This Row],[Prognoositav \nlõpuleviimine]] <>\"\",IF(MüügivihjeAndmed[[#This Row],[Prognoositav \nlõpuleviimine]] = \"July\",MüügivihjeAndmed[Kaalutud \nprognoos],0),\"\"),\"\")","v":""},{"$f":"IFERROR(IF(MüügivihjeAndmed[[#This Row],[Prognoositav \nlõpuleviimine]] <>\"\",IF(MüügivihjeAndmed[[#This Row],[Prognoositav \nlõpuleviimine]] = \"Augusti\",MüügivihjeAndmed[Kaalutud \nprognoos],0),\"\"),\"\")","v":""},{"$f":"IFERROR(IF(MüügivihjeAndmed[[#This Row],[Prognoositav \nlõpuleviimine]] <>\"\",IF(MüügivihjeAndmed[[#This Row],[Prognoositav \nlõpuleviimine]] = \"Septembri\",MüügivihjeAndmed[Kaalutud \nprognoos],0),\"\"),\"\")","v":""},{"$f":"IFERROR(IF(MüügivihjeAndmed[[#This Row],[Prognoositav \nlõpuleviimine]] <>\"\",IF(MüügivihjeAndmed[[#This Row],[Prognoositav \nlõpuleviimine]] = \"Oktoobri\",MüügivihjeAndmed[Kaalutud \nprognoos],0),\"\"),\"\")","v":""},{"$f":"IFERROR(IF(MüügivihjeAndmed[[#This Row],[Prognoositav \nlõpuleviimine]] <>\"\",IF(MüügivihjeAndmed[[#This Row],[Prognoositav \nlõpuleviimine]] = \"Novembri\",MüügivihjeAndmed[Kaalutud \nprognoos],0),\"\"),\"\")","v":""},{"$f":"IFERROR(IF(MüügivihjeAndmed[[#This Row],[Prognoositav \nlõpuleviimine]] <>\"\",IF(MüügivihjeAndmed[[#This Row],[Prognoositav \nlõpuleviimine]] = \"Detsembri\",MüügivihjeAndmed[Kaalutud \nprognoos],0),\"\"),\"\")","v":""}]
[null,{"$f":"IFERROR(IF(AND(MüügivihjeAndmed[[#This Row],[Müügivihje nimi]] <> \"\", ROW(Müügiprognoos[Müügivihje nimi])<>ViimaneKirje),MüügivihjeAndmed[Müügivihje nimi], \"\"),\"\")","v":""},{"$f":"IFERROR(IF(MüügivihjeAndmed[[#This Row],[Prognoositav \nlõpuleviimine]] <>\"\",IF(MüügivihjeAndmed[[#This Row],[Prognoositav \nlõpuleviimine]]= \"Jaanuar\",MüügivihjeAndmed[Kaalutud \nprognoos],0),\"\"),\"\")","v":""},{"$f":"IFERROR(IF(MüügivihjeAndmed[[#This Row],[Prognoositav \nlõpuleviimine]] <>\"\",IF(MüügivihjeAndmed[[#This Row],[Prognoositav \nlõpuleviimine]] = \"Veebruar\",MüügivihjeAndmed[Kaalutud \nprognoos],0),\"\"),\"\")","v":""},{"$f":"IFERROR(IF(MüügivihjeAndmed[[#This Row],[Prognoositav \nlõpuleviimine]] <>\"\",IF(MüügivihjeAndmed[[#This Row],[Prognoositav \nlõpuleviimine]] = \"Märts\",MüügivihjeAndmed[Kaalutud \nprognoos],0),\"\"),\"\")","v":""},{"$f":"IFERROR(IF(MüügivihjeAndmed[[#This Row],[Prognoositav \nlõpuleviimine]] <>\"\",IF(MüügivihjeAndmed[[#This Row],[Prognoositav \nlõpuleviimine]] = \"Aprilli\",MüügivihjeAndmed[Kaalutud \nprognoos],0),\"\"),\"\")","v":""},{"$f":"IFERROR(IF(MüügivihjeAndmed[[#This Row],[Prognoositav \nlõpuleviimine]] <>\"\",IF(MüügivihjeAndmed[[#This Row],[Prognoositav \nlõpuleviimine]] = \"Mai\",MüügivihjeAndmed[Kaalutud \nprognoos],0),\"\"),\"\")","v":""},{"$f":"IFERROR(IF(MüügivihjeAndmed[[#This Row],[Prognoositav \nlõpuleviimine]] <>\"\",IF(MüügivihjeAndmed[[#This Row],[Prognoositav \nlõpuleviimine]] = \"Juuni\",MüügivihjeAndmed[Kaalutud \nprognoos],0),\"\"),\"\")","v":""},{"$f":"IFERROR(IF(MüügivihjeAndmed[[#This Row],[Prognoositav \nlõpuleviimine]] <>\"\",IF(MüügivihjeAndmed[[#This Row],[Prognoositav \nlõpuleviimine]] = \"July\",MüügivihjeAndmed[Kaalutud \nprognoos],0),\"\"),\"\")","v":""},{"$f":"IFERROR(IF(MüügivihjeAndmed[[#This Row],[Prognoositav \nlõpuleviimine]] <>\"\",IF(MüügivihjeAndmed[[#This Row],[Prognoositav \nlõpuleviimine]] = \"Augusti\",MüügivihjeAndmed[Kaalutud \nprognoos],0),\"\"),\"\")","v":""},{"$f":"IFERROR(IF(MüügivihjeAndmed[[#This Row],[Prognoositav \nlõpuleviimine]] <>\"\",IF(MüügivihjeAndmed[[#This Row],[Prognoositav \nlõpuleviimine]] = \"Septembri\",MüügivihjeAndmed[Kaalutud \nprognoos],0),\"\"),\"\")","v":""},{"$f":"IFERROR(IF(MüügivihjeAndmed[[#This Row],[Prognoositav \nlõpuleviimine]] <>\"\",IF(MüügivihjeAndmed[[#This Row],[Prognoositav \nlõpuleviimine]] = \"Oktoobri\",MüügivihjeAndmed[Kaalutud \nprognoos],0),\"\"),\"\")","v":""},{"$f":"IFERROR(IF(MüügivihjeAndmed[[#This Row],[Prognoositav \nlõpuleviimine]] <>\"\",IF(MüügivihjeAndmed[[#This Row],[Prognoositav \nlõpuleviimine]] = \"Novembri\",MüügivihjeAndmed[Kaalutud \nprognoos],0),\"\"),\"\")","v":""},{"$f":"IFERROR(IF(MüügivihjeAndmed[[#This Row],[Prognoositav \nlõpuleviimine]] <>\"\",IF(MüügivihjeAndmed[[#This Row],[Prognoositav \nlõpuleviimine]] = \"Detsembri\",MüügivihjeAndmed[Kaalutud \nprognoos],0),\"\"),\"\")","v":""}]
[null,{"$f":"IFERROR(IF(AND(MüügivihjeAndmed[[#This Row],[Müügivihje nimi]] <> \"\", ROW(Müügiprognoos[Müügivihje nimi])<>ViimaneKirje),MüügivihjeAndmed[Müügivihje nimi], \"\"),\"\")","v":""},{"$f":"IFERROR(IF(MüügivihjeAndmed[[#This Row],[Prognoositav \nlõpuleviimine]] <>\"\",IF(MüügivihjeAndmed[[#This Row],[Prognoositav \nlõpuleviimine]]= \"Jaanuar\",MüügivihjeAndmed[Kaalutud \nprognoos],0),\"\"),\"\")","v":""},{"$f":"IFERROR(IF(MüügivihjeAndmed[[#This Row],[Prognoositav \nlõpuleviimine]] <>\"\",IF(MüügivihjeAndmed[[#This Row],[Prognoositav \nlõpuleviimine]] = \"Veebruar\",MüügivihjeAndmed[Kaalutud \nprognoos],0),\"\"),\"\")","v":""},{"$f":"IFERROR(IF(MüügivihjeAndmed[[#This Row],[Prognoositav \nlõpuleviimine]] <>\"\",IF(MüügivihjeAndmed[[#This Row],[Prognoositav \nlõpuleviimine]] = \"Märts\",MüügivihjeAndmed[Kaalutud \nprognoos],0),\"\"),\"\")","v":""},{"$f":"IFERROR(IF(MüügivihjeAndmed[[#This Row],[Prognoositav \nlõpuleviimine]] <>\"\",IF(MüügivihjeAndmed[[#This Row],[Prognoositav \nlõpuleviimine]] = \"Aprilli\",MüügivihjeAndmed[Kaalutud \nprognoos],0),\"\"),\"\")","v":""},{"$f":"IFERROR(IF(MüügivihjeAndmed[[#This Row],[Prognoositav \nlõpuleviimine]] <>\"\",IF(MüügivihjeAndmed[[#This Row],[Prognoositav \nlõpuleviimine]] = \"Mai\",MüügivihjeAndmed[Kaalutud \nprognoos],0),\"\"),\"\")","v":""},{"$f":"IFERROR(IF(MüügivihjeAndmed[[#This Row],[Prognoositav \nlõpuleviimine]] <>\"\",IF(MüügivihjeAndmed[[#This Row],[Prognoositav \nlõpuleviimine]] = \"Juuni\",MüügivihjeAndmed[Kaalutud \nprognoos],0),\"\"),\"\")","v":""},{"$f":"IFERROR(IF(MüügivihjeAndmed[[#This Row],[Prognoositav \nlõpuleviimine]] <>\"\",IF(MüügivihjeAndmed[[#This Row],[Prognoositav \nlõpuleviimine]] = \"July\",MüügivihjeAndmed[Kaalutud \nprognoos],0),\"\"),\"\")","v":""},{"$f":"IFERROR(IF(MüügivihjeAndmed[[#This Row],[Prognoositav \nlõpuleviimine]] <>\"\",IF(MüügivihjeAndmed[[#This Row],[Prognoositav \nlõpuleviimine]] = \"Augusti\",MüügivihjeAndmed[Kaalutud \nprognoos],0),\"\"),\"\")","v":""},{"$f":"IFERROR(IF(MüügivihjeAndmed[[#This Row],[Prognoositav \nlõpuleviimine]] <>\"\",IF(MüügivihjeAndmed[[#This Row],[Prognoositav \nlõpuleviimine]] = \"Septembri\",MüügivihjeAndmed[Kaalutud \nprognoos],0),\"\"),\"\")","v":""},{"$f":"IFERROR(IF(MüügivihjeAndmed[[#This Row],[Prognoositav \nlõpuleviimine]] <>\"\",IF(MüügivihjeAndmed[[#This Row],[Prognoositav \nlõpuleviimine]] = \"Oktoobri\",MüügivihjeAndmed[Kaalutud \nprognoos],0),\"\"),\"\")","v":""},{"$f":"IFERROR(IF(MüügivihjeAndmed[[#This Row],[Prognoositav \nlõpuleviimine]] <>\"\",IF(MüügivihjeAndmed[[#This Row],[Prognoositav \nlõpuleviimine]] = \"Novembri\",MüügivihjeAndmed[Kaalutud \nprognoos],0),\"\"),\"\")","v":""},{"$f":"IFERROR(IF(MüügivihjeAndmed[[#This Row],[Prognoositav \nlõpuleviimine]] <>\"\",IF(MüügivihjeAndmed[[#This Row],[Prognoositav \nlõpuleviimine]] = \"Detsembri\",MüügivihjeAndmed[Kaalutud \nprognoos],0),\"\"),\"\")","v":""}]
[null,"Kokku",{"$f":"SUBTOTAL(109,Müügiprognoos[Jaanuari \nprognoos])","v":{"v":270000,"d":"270,000 €"}},{"$f":"SUBTOTAL(109,Müügiprognoos[Veebruari \nprognoos])","v":{"v":20000,"d":"20,000 €"}},{"$f":"SUBTOTAL(109,Müügiprognoos[Märtsi \nprognoos])","v":{"v":20000,"d":"20,000 €"}},{"$f":"SUBTOTAL(109,Müügiprognoos[Aprilli \nprognoos])","v":{"v":0,"d":"0 €"}},{"$f":"SUBTOTAL(109,Müügiprognoos[Mai \nprognoos])","v":{"v":0,"d":"0 €"}},{"$f":"SUBTOTAL(109,Müügiprognoos[Juuni \nprognoos])","v":{"v":0,"d":"0 €"}},{"$f":"SUBTOTAL(109,Müügiprognoos[Juuli prognoos])","v":{"v":0,"d":"0 €"}},{"$f":"SUBTOTAL(109,Müügiprognoos[Augusti \nprognoos])","v":{"v":0,"d":"0 €"}},{"$f":"SUBTOTAL(109,Müügiprognoos[Septembri \nprognoos])","v":{"v":0,"d":"0 €"}},{"$f":"SUBTOTAL(109,Müügiprognoos[Oktoobri \nprognoos])","v":{"v":0,"d":"0 €"}},{"$f":"SUBTOTAL(109,Müügiprognoos[Novembri \nprognoos])","v":{"v":0,"d":"0 €"}},{"$f":"SUBTOTAL(109,Müügiprognoos[Detsembri \nprognoos])","v":{"v":0,"d":"0 €"}}]
[null,"Kumulatiivne kogusumma",{"$f":"C20","v":{"v":270000,"d":"270,000 €"}},{"$f":"C21+D20","v":{"v":290000,"d":"290,000 €"}},{"$f":"D21+E20","v":{"v":310000,"d":"310,000 €"}},{"$f":"E21+F20","v":{"v":310000,"d":"310,000 €"}},{"$f":"F21+G20","v":{"v":310000,"d":"310,000 €"}},{"$f":"G21+H20","v":{"v":310000,"d":"310,000 €"}},{"$f":"H21+I20","v":{"v":310000,"d":"310,000 €"}},{"$f":"I21+J20","v":{"v":310000,"d":"310,000 €"}},{"$f":"J21+K20","v":{"v":310000,"d":"310,000 €"}},{"$f":"K21+L20","v":{"v":310000,"d":"310,000 €"}},{"$f":"L21+M20","v":{"v":310000,"d":"310,000 €"}},{"$f":"M21+N20","v":{"v":310000,"d":"310,000 €"}}]

{"sheet":"Kaalutud kuupõhine prognoos","index":2,"n_rows":3,"n_cols":2,"rows_kept":3}
[null,{"$f":"Ettevõtte_nimi","v":"Ettevõtte nimi"}]
[null,"Kaalutud kuupõhine prognoos"]
[null," "]